Cogmind - Beta 13 @@@ ROGUE MODE // 2024.03.06 @ 14:28:00 Player: Kaz Result: Destroyed by G-34 Mercenary with Small Laser Performance ------------- Evolutions (0) 0 Regions Visited (1) 200 Robots Destroyed (23) 115 Value Destroyed (461) 461 Prototype IDs (2) 40 Alien Tech Used (0) 0 Bonus (0) 0 TOTAL SCORE: 816 Bonus ------- None Cogmind --------- Core Integrity 0/250 Matter 409/500 Energy 125/125 System Corruption 1% Temperature Cool (14) Movement Rolling (115) Ox1 Location -10/Materials Parts ------- > --- POWER (1) -------- Light Ion Engine > --- PROPULSION (2) --- Compact Wheel Compact Wheel > --- UTILITY (2) ------ High-capacity Storage Unit High-capacity Matter Pod > --- WEAPON (2) ------- Light Assault Rifle Light Cannon > --- INVENTORY (20) --- Wheel Medium Storage Unit Large Storage Unit Large Storage Unit Light Assault Rifle Light Cannon Peak State ------------ > --- POWER ------------ Light Ion Engine > --- PROPULSION ------- Wheel Wheel > --- UTILITY ---------- Small Storage Unit Large Storage Unit > --- WEAPON ----------- Assault Rifle Light Assault Rifle > --- INVENTORY -------- Wheel [Rating: 7] Favorites ----------- Power Light Ion Engine Engine Light Ion Engine Propulsion Wheel Wheel Wheel Utility Small Storage Unit Storage Small Storage Unit Weapon Light Assault Rifle Ballistic Gun Light Assault Rifle Ballistic Cannon Light Cannon Build | -11 -10 ------- Run | Yrd Mat Slots Evolved . | . . Power . | . . Propulsion . | . . Utility . | . . Weapon . | . . Parts Attached 19 | 6 13 Power 3 | 1 2 Engine 3 | 1 2 Core . | . . Reactor . | . . Propulsion 4 | 2 2 Treads . | . . Leg . | . . Wheel 4 | 2 2 Hover . | . . Flight . | . . Utility 5 | 1 4 Device . | . . Storage 5 | 1 4 Processor . | . . Hackware . | . . Protection . | . . Artifact . | . . Weapon 7 | 2 5 Energy Gun . | . . Energy Cannon . | . . Ballistic Gun 6 | 2 4 Ballistic Cannon 1 | . 1 Launcher . | . . Special Weapon . | . . Impact Weapon . | . . Slashing Weapon . | . . Piercing Weapon . | . . Special Melee Weapon . | . . Unidentified Prototypes . | . . Parts Lost 7 | . 7 Power 2 | . 2 Propulsion 1 | . 1 Utility . | . . Weapon 4 | . 4 Highest Loss Streak 2 | . 2 To Critical Strikes . | . . Average Slot Usage (%) 97 | . 97 Engine 13 | . 13 Wheel 27 | . 27 Storage 26 | . 26 Ballistic Gun 26 | . 26 Ballistic Cannon 1 | . 1 Naked Turns . | . . Heaviest Build 52 | 11 52 Greatest Support 32 | 20 32 Greatest Overweight (x) 3 | 1 3 Average Overweight (x) . | . . Largest Inventory Capacity 20 | 8 20 Average Capacity 11 | 7 16 Most Carried 8 | . 8 Average Carried 2 | . 5 Final Capacity 20 | 8 20 Final Carried 6 | . 6 Class Distribution -------------------- 100% | Mutant Dominant Class ---------------- Mutant | -10/Materials Resources | -11 -10 ----------- Run | Yrd Mat Matter Collected 717 | 170 547 Remotely . | . . Salvage Created 661 | . 661 Parts 56 | . 56 Haulers Intercepted 2 | . 2 Recyclers Shooed 2 | . 2 Parts Field Recycled . | . . Retrieved Matter . | . . Parts Self-Destructed . | . . Prevented . | . . Kills | -11 -10 ------- Run | Yrd Mat Combat Hostiles Destroyed 18 | . 18 Guns 17 | . 17 Cannons 1 | . 1 Classes Destroyed 4 | . 4 Hauler 2 | . 2 Watcher 3 | . 3 Swarmer 9 | . 9 Grunt 9 | . 9 Best Kill Streak 6 | . 6 Combat Bots Only 6 | . 6 Max Kills in Single Turn 1 | . 1 Gunslinging . | . . Exploded . | . . Melee . | . . Uniques/NPCs Destroyed . | . . Combat | -11 -10 -------- Run | Yrd Mat Hostile Shots Fired 136 | . 136 Missed 43 | . 43 Damage Taken 912 | . 912 Core 256 | . 256 Absorbed by Shields . | . . Core Remaining (%) 100 | 100 . Volleys Fired 71 | . 71 Largest 2 | . 2 Hottest 55 | . 55 Shots Fired 134 | . 134 Gun 123 | . 123 Cannon 11 | . 11 Launcher . | . . Special . | . . Kinetic 134 | . 134 Thermal . | . . Explosive . | . . Electromagnetic . | . . Robot Hit Streak 13 | . 13 Robot Miss Streak 5 | . 5 Penetration Max . | . . Secondary Targets 2 | . 2 Max Gunslinging Chain 1 | . 1 Shots Hit Robots 82 | . 82 Core Hits 40 | . 40 Critical Kills . | . . Critical Parts Destroyed . | . . Critical Strikes . | . . Melee Attacks . | . . Impact . | . . Slashing . | . . Piercing . | . . Sneak Attacks . | . . Combat Hostiles . | . . Follow-up Attacks . | . . Damage Inflicted 911 | . 911 Guns 804 | . 804 Cannons 88 | . 88 Explosions . | . . Melee . | . . Ramming 19 | . 19 Kinetic 892 | . 892 Thermal . | . . Explosive . | . . Electromagnetic . | . . Impact . | . . Slashing . | . . Piercing . | . . Highest Corruption 1 | . 1 Average Corruption 1 | . 1 Corruption Purged . | . . Corruption Blocked . | . . Effects 7 | . 7 Message Errors 2 | . 2 Heat Flow Errors 2 | . 2 Energy Discharges 1 | . 1 Misfires 1 | . 1 Weapon Failures 1 | . 1 Overload Shots . | . . Overflow Damage . | . . Projectiles . | . . Explosions . | . . Melee . | . . Knockbacks . | . . Impact . | . . Kinetic . | . . Secondary . | . . Self-Inflicted Damage 9 | . 9 Shots . | . . Rammed 2 | . 2 Targets Rammed 2 | . 2 Kicked . | . . Crushed . | . . Highest Temperature 91 | . 91 Average Temperature 18 | . 18 Received Heat Transfer 288 | . 288 Siege Activations . | . . Robots Corrupted . | . . Combat Hostiles . | . . Parts Fried . | . . Impact Corruptions . | . . Robots Melted . | . . Combat Hostiles . | . . Parts Melted . | . . Heat Transferred . | . . Parts Sabotaged . | . . Parts Stolen . | . . Parts Stripped . | . . Power Chain Reactions . | . . Alert | -11 -10 ------- Run | Yrd Mat Peak Influence 331 | . 331 Initial . | . . Average 64 | . 159 Maximum Alert Level 1 | . 1 Low Security (%) 90 | 100 75 Level 1 9 | . 24 Level 2 . | . . Level 3 . | . . Level 4 . | . . Level 5 . | . . High Security . | . . Max Security . | . . Squads Dispatched 4 | . 4 Investigation 2 | . 2 Extermination . | . . Reinforcement 2 | . 2 Assault . | . . Garrison . | . . Intercept . | . . Searches Triggered . | . . Construction Impeded . | . . Haulers Reinforced . | . . Active Scanning Responses . | . . Cargo Convoy Interrupts . | . . Stealth | -11 -10 --------- Run | Yrd Mat Distress Signals 1 | . 1 Communications Jammed . | . . Distress Signals . | . . Times Spotted 33 | . 33 Peak Tracking Total 7 | . 7 Tactical Retreats 2 | . 2 Traps | -11 -10 ------- Run | Yrd Mat Traps Triggered 3 | . 3 Indirectly . | . . Trap Hack Attempts . | . . Triggered . | . . Disarmed . | . . Reprogrammed . | . . Reused . | . . Traps Extracted . | . . Installed . | . . Triggered . | . . Machines | -11 -10 ---------- Run | Yrd Mat Machines Disabled . | . . Max in Single Turn . | . . Machines Repaired . | . . Machines Dismantled . | . . Machines Sabotaged . | . . Overloaded Fab Kills . | . . Hacking | -11 -10 --------- Run | Yrd Mat Machines Accessed 3 | . 3 Terminals 3 | . 3 Fabricators . | . . Repair Stations . | . . Recycling Units . | . . Scanalyzers . | . . Garrison Access . | . . Total Hacks 11 | . 11 Successful 7 | . 7 Failed 4 | . 4 Catastrophic . | . . Database Lockouts . | . . Manual . | . . Terminals 11 | . 11 Fabricators . | . . Repair Stations . | . . Recycling Units . | . . Scanalyzers . | . . Garrison Access . | . . Terminal Hacks 7 | . 7 Record 4 | . 4 Prototype ID Bank 1 | . 1 Locate Traps 1 | . 1 Zone Layout 1 | . 1 Fabricator Hacks . | . . Repair Station Hacks . | . . Recycling Unit Hacks . | . . Scanalyzer . | . . Garrison Access Hacks . | . . Unauthorized Hacks . | . . Terminals . | . . Fabricators . | . . Repair Stations . | . . Recycling Units . | . . Scanalyzers . | . . Garrison Access . | . . Data Cores Recovered . | . . Used . | . . Hacking Detections 3 | . 3 Full Trace Events 3 | . 3 Feedback Events . | . . Feedback Blocked . | . . Robot Schematics Acquired . | . . Robots Built . | . . Authchips . | . . Time . | . . Total Robot Build Rating . | . . Part Schematics Acquired . | . . Parts Built . | . . Authchips . | . . Time . | . . Total Part Build Rating . | . . Parts Repaired . | . . Time . | . . Parts Recycled . | . . Recycled Matter . | . . Retrieved Matter . | . . Retrieved Components . | . . Parts Scanalyzed . | . . Part Schematics Acquired . | . . Parts Damaged . | . . Bothacking | -11 -10 ------------ Run | Yrd Mat Used RIF Installer . | . . Robots Hacked . | . . Non-combat . | . . Combat . | . . Robot Hacks Applied . | . . Relay Couplers Released . | . . Fabnet Peak Effective % . | . . Robots Rewired . | . . Allies Hacked . | . . Hacks Repelled . | . . Allies | -11 -10 -------- Run | Yrd Mat Total Allies . | . . Largest Group . | . . Highest-Rated Group . | . . Highest-Rated Ally . | . . Total Orders . | . . Ally Attacks . | . . Total Damage . | . . Kills . | . . Allies Corrupted . | . . Allies Melted . | . . Intel | -11 -10 ------- Run | Yrd Mat Robot Analysis Total . | . . Derelict Logs Recovered . | . . Drone Launches . | . . Drone Recoveries . | . . Exploration | -11 -10 ------------- Run | Yrd Mat Turns Passed 2054 | 1227 827 Spaces Moved 870 | 321 549 Core 1 | 1 . Treads . | . . Legs . | . . Wheels 869 | 320 549 Hover . | . . Flight . | . . Fastest Speed 50 | 50 80 Average Speed 94 | 80 102 Slowest Speed 125 | 95 125 Overloaded Moves . | . . Propulsion Burnouts . | . . Robots Hopped . | . . Cave-ins Triggered . | . . Exploration Rate (%) 58 | 30 86 Regions Visited 1 Branch Regions . Pre-discovered Areas . | . . Known Exits Taken . | . . Unknown Exits Taken 1 | 1 . Scrap Searched . | . . Spaces Dug . | . . Terrain Destroyed . | . . Melee . | . . Projectile . | . . AOE . | . . Terrain Rammed . | . . Walls Destroyed . | . . Machines Disabled . | . . Actions | -11 -10 --------- Run | Yrd Mat Total 1981 | 1287 694 Wait 1007 | 961 46 Move 869 | 320 549 Hop . | . . Pick Up 12 | . 12 Fast Attach 7 | 6 1 Attach 8 | . 8 Detach . | . . Swap 4 | . 4 Drop 1 | . 1 Fire 71 | . 71 Melee . | . . Ram 2 | . 2 Kick . | . . Crush . | . . Escape Stasis . | . . Rewire . | . . Trap . | . . Miscellaneous . | . . Route ------- -11/Scrapyard -10/Materials (discovered 4 exits: [*Mat x3] / [*Min]) History --------- Turn | Location | Event 10 | -11/Scrapyard | Discovered new exit (range 15) 1228 | -11/Scrapyard | Entered Materials 1229 | -10/Materials | Build established: Mutant 1328 | -10/Materials | Discovered new exit (range 7) 1385 | -10/Materials | Discovered new exit (range 12) 1437 | -10/Materials | Discovered new exit (range 15) 1512 | -10/Materials | Core integrity fell below 50% 1968 | -10/Materials | Core integrity fell below 20% 2046 | -10/Materials | Discovered new exit (range 15) 2055 | -10/Materials | Destroyed by G-34 Mercenary with Small Laser Last Messages --------------- 02008_ Acquired 47 matter. 02009_ K-01 Serf collects debris. 02010_ Slammed into M-13 Machinist. 02013_ K-01 Serf collects debris. 02014_ Acquired Lgt. Assault Rifle. 02016_ Acquired 16 matter. 02017_ K-01 Serf collects debris. 02027_ G-34 Mercenary destroyed. 02029_ System corrupted: Energy discharge (-32). 02031_ K-01 Serf collects debris. 02033_ G-34 Mercenary destroyed. 02033_ K-01 Serf collects debris. 02038_ W-16 Scout destroyed. 02041_ K-01 Serf collects debris. 02042_ R-06 Scavenger collects Ion Engine. 02045_ Acquired 51 matter. 02045_ K-01 Serf collects debris. 02046_ EXIT=FOUND 02046_ R-06 Scavenger collects Ion Engine. 02049_ K-01 Serf collects debris. Map ----- +----------------------------------------------------+ | # # ^ ] #???????????????? | | ###########/= / #???????????????? | | ????????###= #???????????????? | | ????????#"" ^ #???????????????? | | ????????#"" #???????????????? | | ????????#"T ^ #???????????????? | | ????????#"" +???????????????? | | ????????#"" ^ % #???????????????? | | ????????### """ """% #???????????????? | | ??????????# """ """ #???????????????? | | ?????????? """ """ ????????????? | | ?????? ? ?? < #??????????? | | ####?# ?? ?? #??????????? | | #?# ##########??"### #??????????? | | "" #?# #? #??"??? #??????????? | | R" #?# #""" #?????? #??????????? | | "" #?# #""" #?????? #??????????? | | #?# #""" #?????#r #??????????? | | "" #?# # #?????# #??????????? | | "" #?# #""" !#?????# #??????????? | | "" #?# #""" #?????# % #??????????? | | #?# #""" #?????#g #######+##?? | | ####?# #?? ???????# #?? | | #### #####+##???????# #?? | | [= ######### % % #?? | | *[[[=*= = =! @ #?? | | = !!#####= =!k ""? | | ###+###########???# k !! T"? | | ## #????????# """ !! !! "?? | | ## """ #????????# """ !! #?? | | ## """ #????????# """ ! #?? | | ## """ #????????+ #?? | | ## #????????# #?? | | ## """ #????????###+## ??? | | ## """ #??????????????######### ??? | | ### """ #???????????????????????? ???? | | ??# #????????????????????????????? | | ??##########????????????????????????????? | | ????????????????????????????????????????? | | ????????????????????????????????????????? | | ????????????????????????????????????????? | | ????????????????????????????????????????? | | ????????????????????????????????????????? | | ????????????????????????????????????????? | | ????????????????????????????????????????? | | | | | | | | | | | +----------------------------------------------------+ Best States ------------- Heat Dissipation 25 Energy Generation 10 Energy Capacity 250 Matter Stores 419 Matter Capacity 500 Sight Range 16 Terrain Scan Density 10 Evasion (%) 44 Item Schematics ----------------- None Robot Schematics ------------------ None Fabricated ------------ Nothing Alien Tech Used ----------------- None Achievements -------------- None Challenges ------------ None Game ------ Seed PiercingParticleTerrabomb Manual? 0 Play Time 00:17:09 Cumulative 143.7 hours Start 2024.03.06 @ 13:00:43 End 2024.03.06 @ 14:28:00 Sessions 2 Manual Loads 0 Difficulty Rogue Special Mode None Game No. 94 Rogue 82 Adventurer 12 Explorer 0 Win Type - Total 1 Types 1/0/0/0/0/0/0/0/0 Lore% 21 Gallery% 37 Achievement% 30 Wizard Run 0 Options --------- Layout 1 ASCII 0 Keyboard 0 Movement Mouse Keybinds 0 Fullscreen 1 Font 32/SmallcapsGlow Map View 77x35 Zoom Use 0% Tactical HUD 1 Map Filters NONE Filters NONE Steam 1 RUN: 9f76c1a5-2329-4ae9-b732-ce7b64519611